fUST/lending_fUST_20251001
["ID","MTS","AMOUNT","RATE_DAILY","PERIOD"]
[388679174,1759317038889,-151.0,0.00019452,2]
[388679175,1759317038899,-1984.49,0.00019452,2]
[388679176,1759317038909,-500.0,0.00019452,2]
[388679177,1759317038918,-500.0,0.00019452,2]
[388679178,1759317038928,-500.0,0.00019452,2]
[388679179,1759317038937,-507.48478079,0.00019452,2]
[388679180,1759317038946,-3566.33,0.00019452,2]
[388679181,1759317038955,-1612.42,0.00019452,2]
[388679182,1759317038965,-500.0,0.00019452,2]
[388679183,1759317038975,-1047.91,0.00019452,2]
[388679184,1759317038984,-825.25,0.00019452,2]
[388679185,1759317038993,-648.53,0.00019452,2]
[388679186,1759317039002,-151.0,0.00019452,2]
[388679187,1759317039011,-500.0,0.00019452,2]
[388679188,1759317039021,-1782.18,0.00019452,2]
[388679189,1759317039031,-500.0,0.00019452,2]
[388679190,1759317039040,-2218.49,0.00019452,2]
[388679191,1759317039050,-500.0,0.00019452,2]
[388679192,1759317039059,-500.0,0.00019452,2]
[388679193,1759317039068,-519.63,0.00019452,2]
[388679194,1759317039078,-2881.83,0.00019452,2]
[388679195,1759317039087,-3729.6,0.00019452,2]
[388679196,1759317039097,-166.66,0.00019452,2]
[388679197,1759317039106,-1365.21,0.00019452,2]
[388679198,1759317039115,-500.0,0.00019452,2]
[388679199,1759317039125,-886.48,0.00019452,2]
[388679200,1759317039134,-500.0,0.00019452,2]
[388679201,1759317039144,-500.0,0.00019452,2]
[388679202,1759317039154,-151.0,0.00019452,2]
[388679203,1759317039163,-152.083217,0.00019452,2]
[388679204,1759317039173,-529.21,0.00019452,2]
[388679205,1759317039182,-500.0,0.00019452,2]
[388679206,1759317039192,-500.0,0.00019473,2]
[388679207,1759317039202,-500.0,0.00019473,2]
[388679208,1759317039212,-500.0,0.00019473,2]
[388679209,1759317039222,-500.0,0.00019473,2]
[388679210,1759317039231,-500.0,0.00019473,2]
[388679211,1759317039240,-500.0,0.00019473,2]
[388679212,1759317039250,-500.0,0.00019473,2]
[388679213,1759317039259,-2803.0,0.00019554,2]
[388679214,1759317039269,-225.92,0.00019626,2]
[388679215,1759317039280,-573.67707166,0.00019691,2]
[388679216,1759317039290,-151.0,0.00019691,2]
[388679217,1759317039299,-234.662045,0.00019691,2]
[388679218,1759317039308,-234.662045,0.00019691,2]
[388679219,1759317039318,-234.662045,0.00019691,2]
[388679220,1759317039328,-234.662045,0.00019691,2]
[388679221,1759317039338,-151.0,0.00019691,2]
[388679222,1759317039347,-151.0,0.00019691,2]
[388679223,1759317039356,-169.871241,0.00019691,2]
[388679224,1759317039366,-151.0,0.00019714,2]
[388679225,1759317039375,-151.0,0.00019726,2]
[388679226,1759317039384,-151.0,0.00019726,2]
[388679227,1759317039394,-199.44244335,0.00019726,2]
[388679228,1759317039403,-199.14160081,0.00019726,2]
[388679229,1759317039412,-1025.0,0.00019726,2]
[388679230,1759317039422,-151.0,0.00019726,2]
[388679231,1759317039431,-151.0,0.00019726,2]
[388679232,1759317039441,-500.0,0.00019726,2]
[388679233,1759317039451,-151.0,0.00019726,2]
[388679234,1759317039463,-500.0,0.00019726,2]
[388679235,1759317039473,-1043.81,0.00019726,2]
[388679236,1759317039483,-680.43,0.00019726,2]
[388679237,1759317039492,-500.0,0.00019726,2]
[388679238,1759317039502,-599.69,0.00019726,2]
[388679239,1759317039512,-344.62059544,0.00019726,2]
[388679240,1759317039521,-500.0,0.00019726,2]
[388679241,1759317039533,-500.0,0.00019726,2]
[388679242,1759317039543,-500.0,0.00019726,2]
[388679243,1759317039552,-500.0,0.00019726,2]
[388679244,1759317039562,-2013.15,0.00019726,2]
[388679245,1759317039571,-500.0,0.00019726,2]
[388679246,1759317039580,-1685.89,0.00019726,2]
[388679247,1759317039591,-500.0,0.00019726,2]
[388679248,1759317039600,-500.0,0.00019726,2]
[388679249,1759317039610,-973.29,0.00019726,2]
[388679250,1759317039619,-888.35,0.00019726,2]
[388679252,1759317039628,-500.0,0.00019726,2]
[388679253,1759317039638,-1151.0,0.00019726,2]
[388679254,1759317039647,-500.0,0.00019726,2]
[388679255,1759317039656,-152.232153,0.00019726,2]
[388679256,1759317039666,-507.85,0.00019726,2]
[388679257,1759317039675,-629.1,0.00019726,2]
[388679258,1759317039684,-367.90000577,0.00019726,2]
[388679260,1759317039693,-151.0,0.00019726,2]
[388679262,1759317039703,-524.79,0.00019726,2]
[388679264,1759317039712,-151.0,0.00019726,2]
[388679266,1759317039721,-602.75,0.00019726,2]
[388679267,1759317039730,-995.24,0.00019726,2]
[388679268,1759317039739,-500.0,0.00019726,2]
[388679269,1759317039749,-500.0,0.00019726,2]
[388679270,1759317039758,-164.724016,0.00019726,2]
[388679271,1759317039767,-500.0,0.00019726,2]
[388679272,1759317039777,-500.0,0.00019726,2]
[388679273,1759317039787,-1011.98,0.00019726,2]
[388679274,1759317039796,-1073.62,0.00019726,2]
[388679275,1759317039805,-500.0,0.00019726,2]
[388679276,1759317039814,-500.0,0.00019726,2]
[388679277,1759317039824,-151.0,0.00019726,2]
[388679278,1759317039833,-151.0,0.00019726,2]
[388679279,1759317039842,-220.022776,0.00019726,2]
[388679280,1759317039851,-500.0,0.00019726,2]
[388679281,1759317039860,-500.0,0.00019726,2]
[388679282,1759317039869,-500.0,0.00019726,2]
[388679283,1759317039879,-170.386274,0.00019726,2]
[388679284,1759317039888,-543.52,0.00019726,2]
[388679285,1759317039897,-841.38,0.00019726,2]
[388679286,1759317039907,-500.0,0.00019726,2]
[388679287,1759317039917,-996.71,0.00019726,2]
[388679288,1759317039927,-500.0,0.00019726,2]
[388679289,1759317039938,-500.0,0.00019726,2]
[388679290,1759317039949,-500.0,0.00019726,2]
[388679291,1759317039959,-867.72,0.00019726,2]
[388679292,1759317039970,-995.04,0.00019726,2]
[388679293,1759317039979,-151.0,0.00019726,2]
[388679294,1759317039989,-649.93,0.00019726,2]
[388679296,1759317039998,-777.48,0.00019726,2]
[388679298,1759317040008,-2460.48,0.00019726,2]
[388679299,1759317040016,-500.0,0.00019726,2]
[388679300,1759317040028,-151.0,0.00019726,2]
[388679301,1759317040040,-151.0,0.00019726,2]
[388679302,1759317040050,-151.0,0.00019726,2]
[388679303,1759317040059,-2327.31,0.00019726,2]
[388679304,1759317040068,-500.0,0.00019726,2]
[388679305,1759317040079,-500.0,0.00019726,2]
[388679306,1759317040089,-151.0,0.00019726,2]
[388679307,1759317040098,-1453.46,0.00019726,2]
[388679308,1759317040107,-500.0,0.00019726,2]
[388679309,1759317040117,-1480.74,0.00019726,2]
[388679310,1759317040126,-151.0,0.00019726,2]
[388679311,1759317040136,-500.0,0.00019726,2]
[388679312,1759317040146,-1028.71,0.00019726,2]
[388679313,1759317040156,-500.0,0.00019726,2]
[388679314,1759317040165,-151.0,0.00019726,2]
[388679315,1759317040174,-500.0,0.00019726,2]
[388679316,1759317040183,-500.0,0.00019726,2]
[388679317,1759317040192,-500.0,0.00019726,2]
[388679318,1759317040201,-1189.04,0.00019726,2]
[388679320,1759317040215,-500.0,0.00019726,2]
[388679321,1759317040224,-500.0,0.00019726,2]
[388679322,1759317040233,-500.0,0.00019726,2]
[388679323,1759317040243,-500.0,0.00019726,2]
[388679324,1759317040257,-500.0,0.00019726,2]
[388679325,1759317040267,-558.59,0.00019726,2]
[388679326,1759317040275,-153.68823,0.00019726,2]
[388679327,1759317040285,-614.9,0.00019726,2]
[388679328,1759317040295,-500.0,0.00019726,2]
[388679329,1759317040304,-500.0,0.00019726,2]
[388679330,1759317040313,-804.99,0.00019726,2]
[388679331,1759317040322,-500.0,0.00019726,2]
[388679332,1759317040331,-500.0,0.00019726,2]
[388679333,1759317040340,-500.0,0.00019726,2]
[388679334,1759317040349,-500.0,0.00019726,2]
[388679335,1759317040359,-3246.79,0.00019726,2]
[388679337,1759317040369,-500.0,0.00019726,2]
[388679339,1759317040379,-465.37822724,0.00019726,2]
[388679341,1759317040387,-730.12,0.00019726,2]
[388679343,1759317040396,-2515.61,0.00019726,2]
[388679344,1759317040405,-269.84946845,0.00019726,2]
[388679346,1759317040415,-500.0,0.00019726,2]
[388679347,1759317040424,-154.918579,0.00019726,2]
[388679348,1759317040433,-1017.09,0.00019726,2]
[388679349,1759317040442,-151.0,0.00019726,2]
[388679350,1759317040452,-151.0,0.00019726,2]
[388679351,1759317040466,-500.0,0.00019726,2]
[388679352,1759317040475,-500.0,0.00019726,2]
[388679353,1759317040523,-500.0,0.00019726,2]
[388679354,1759317040534,-1451.28,0.00019726,2]
[388679355,1759317040544,-151.0,0.00019726,2]
[388679356,1759317040553,-151.0,0.00019726,2]
[388679357,1759317040563,-303.53760374,0.00019726,2]
[388679358,1759317040572,-500.0,0.00019726,2]
[388679359,1759317040582,-199.878074,0.00019726,2]
[388679360,1759317040593,-500.0,0.00019726,2]
[388679361,1759317040603,-500.0,0.00019726,2]
[388679362,1759317040613,-500.0,0.00019726,2]
[388679363,1759317040623,-500.0,0.00019726,2]
[388679364,1759317040632,-1045.88,0.00019726,2]
[388679365,1759317040641,-151.0,0.00019726,2]
[388679366,1759317040651,-1355.68,0.00019726,2]
[388679367,1759317040660,-500.0,0.00019726,2]
[388679368,1759317040669,-500.0,0.00019726,2]
[388679369,1759317040678,-500.0,0.00019726,2]
[388679370,1759317040687,-662.04,0.00019726,2]
[388679371,1759317040696,-234.662045,0.00019726,2]
[388679372,1759317040706,-779.29,0.00019726,2]
[388679373,1759317040715,-234.662045,0.00019726,2]
[388679374,1759317040724,-234.662045,0.00019726,2]
[388679375,1759317040733,-234.662045,0.00019726,2]
[388679376,1759317040742,-701.44,0.00019726,2]
[388679377,1759317040751,-630.0,0.00019726,2]
[388679378,1759317040760,-151.0,0.00019726,2]
[388679379,1759317040770,-500.0,0.00019726,2]
[388679380,1759317040779,-766.39,0.00019726,2]
[388679381,1759317040789,-594.95,0.00019726,2]
[388679382,1759317040798,-500.0,0.00019726,2]
[388679383,1759317040807,-500.0,0.00019726,2]
[388679384,1759317040816,-151.0,0.00019726,2]
[388679385,1759317040827,-500.0,0.00019726,2]
[388679386,1759317040836,-289.82096251,0.00019726,2]
[388679387,1759317040845,-1058.77,0.00019726,2]
[388679388,1759317040854,-2449.77,0.00019726,2]
[388679389,1759317040864,-500.0,0.00019726,2]
[388679390,1759317040873,-2057.41,0.00019726,2]
[388679391,1759317040883,-151.0,0.00019726,2]
[388679392,1759317040893,-500.0,0.00019726,2]
[388679393,1759317040902,-732.43,0.00019726,2]
[388679394,1759317040911,-151.0,0.00019726,2]
[388679395,1759317040920,-500.0,0.00019726,2]
[388679396,1759317040929,-500.0,0.00019726,2]
[388679397,1759317040939,-500.0,0.00019726,2]
[388679398,1759317040949,-151.0,0.00019726,2]
[388679399,1759317040958,-151.0,0.00019726,2]
[388679400,1759317040966,-768.4,0.00019726,2]
[388679401,1759317040975,-500.0,0.00019726,2]
[388679402,1759317040985,-2309.76,0.00019726,2]
[388679403,1759317040994,-515.12,0.00019726,2]
[388679404,1759317041003,-3328.27,0.00019726,2]
[388679405,1759317041012,-929.38,0.00019726,2]
[388679406,1759317041021,-1925.77,0.00019726,2]
[388679407,1759317041031,-4887.39,0.00019726,2]
[388679408,1759317041040,-3370.98,0.00019726,2]
[388679409,1759317041050,-500.0,0.00019726,2]
[388679410,1759317041059,-500.0,0.00019726,2]
[388679411,1759317041068,-942.98,0.00019726,2]
[388679412,1759317041077,-3722.29,0.00019726,2]
[388679413,1759317041086,-1554.88,0.00019726,2]
[388679414,1759317041095,-1915.11,0.00019726,2]
[388679415,1759317041107,-742.84,0.00019726,2]
[388679416,1759317041116,-500.0,0.00019726,2]
[388679417,1759317041126,-696.44,0.00019726,2]
[388679418,1759317041135,-906.43,0.00019726,2]
[388679419,1759317041144,-500.0,0.00019726,2]
[388679420,1759317041154,-500.0,0.00019726,2]
[388679421,1759317041164,-500.0,0.00019726,2]
[388679422,1759317041173,-699.56,0.00019726,2]
[388679423,1759317041182,-500.0,0.00019726,2]
[388679424,1759317041191,-1027.8,0.00019726,2]
[388679425,1759317041200,-10998.14,0.00019726,2]
[388679426,1759317041209,-4328.59,0.00019726,2]
[388679427,1759317041218,-552.19,0.00019726,2]
[388679428,1759317041227,-500.0,0.00019726,2]
[388679429,1759317041236,-1701.35,0.00019726,2]
[388679430,1759317041245,-500.0,0.00019726,2]
[388679431,1759317041255,-500.0,0.00019726,2]
[388679432,1759317041264,-845.74,0.00019726,2]
[388679433,1759317041273,-2129.15,0.00019726,2]
[388679434,1759317041282,-500.0,0.00019726,2]
[388679435,1759317041291,-886.07,0.00019726,2]
[388679436,1759317041301,-751.92,0.00019726,2]
[388679437,1759317041310,-1106.74,0.00019726,2]
[388679438,1759317041319,-1595.39,0.00019726,2]
[388679439,1759317041328,-919.52,0.00019726,2]
[388679440,1759317041342,-2034.16,0.00019726,2]
[388679441,1759317041351,-151.0,0.00019726,2]
[388679442,1759317041360,-721.29,0.00019726,2]
[388679443,1759317041370,-151.0,0.00019726,2]
[388679444,1759317041379,-151.0,0.00019726,2]
[388679445,1759317041389,-500.0,0.00019726,2]
[388679446,1759317041398,-151.0,0.00019726,2]
[388679447,1759317041408,-500.0,0.00019726,2]
[388679448,1759317041417,-1924.06,0.00019726,2]
[388679449,1759317041427,-1901.59,0.00019726,2]
[388679450,1759317041437,-1599.46,0.00019726,2]
[388679451,1759317041446,-1409.89,0.00019726,2]
[388679452,1759317041458,-500.0,0.00019726,2]
[388679453,1759317041468,-500.0,0.00019726,2]
[388679454,1759317041478,-1391.76,0.00019726,2]
[388679455,1759317041487,-1276.92,0.00019726,2]
[388679456,1759317041496,-1463.75,0.00019726,2]
[388679457,1759317041507,-1929.73,0.00019726,2]
[388679458,1759317041516,-151.0,0.00019726,2]
[388679459,1759317041525,-500.0,0.00019726,2]
[388679460,1759317041535,-174.180251,0.00019726,2]
[388679461,1759317041544,-500.0,0.00019726,2]
[388679462,1759317041553,-634.44,0.00019726,2]
[388679463,1759317041562,-500.0,0.00019726,2]
[388679464,1759317041571,-4107.608229,0.00019726,2]
[388679465,1759317041581,-151.0,0.00019726,2]
[388679466,1759317041590,-4107.608229,0.00019726,2]
[388679467,1759317041599,-151.0,0.00019726,2]
[388679468,1759317041608,-4107.608229,0.00019726,2]
[388679469,1759317041620,-151.0,0.00019726,2]
[388679470,1759317041630,-4107.608229,0.00019726,2]
[388679471,1759317041639,-151.0,0.00019726,2]
[388679472,1759317041649,-500.0,0.00019726,2]
[388679473,1759317041658,-4107.608229,0.00019726,2]
[388679474,1759317041668,-4107.608229,0.00019726,2]
[388679475,1759317041677,-4107.608229,0.00019726,2]
[388679476,1759317041687,-1282.7,0.00019726,2]
[388679477,1759317041696,-4107.608229,0.00019726,2]
[388679478,1759317041706,-503.5,0.00019726,2]
[388679479,1759317041715,-2209.34,0.00019726,2]
[388679480,1759317041725,-3235.12,0.00019726,2]
[388679481,1759317041735,-702.01,0.00019726,2]
[388679482,1759317041745,-152.759566,0.00019726,2]
[388679483,1759317041754,-500.0,0.00019726,2]
[388679484,1759317041764,-151.0,0.00019726,2]
[388679485,1759317041773,-151.0,0.00019726,2]
[388679486,1759317041784,-500.0,0.00019726,2]
[388679487,1759317041794,-500.0,0.00019726,2]
[388679488,1759317041804,-900.33,0.00019726,2]
[388679489,1759317041813,-151.0,0.00019726,2]
[388679490,1759317041823,-428.03436851,0.00019726,2]
[388679491,1759317041833,-1436.59,0.00019726,2]
[388679492,1759317041843,-152.342961,0.00019726,2]
[388679493,1759317041852,-1567.18,0.00019726,2]
[388679494,1759317041861,-1291.97,0.00019726,2]
[388679495,1759317041871,-724.52,0.00019726,2]
[388679496,1759317041880,-1262.27,0.00019726,2]
[388679497,1759317041890,-1096.42,0.00019726,2]
[388679498,1759317041900,-1993.91,0.00019726,2]
[388679499,1759317041910,-4458.68,0.00019726,2]
[388679500,1759317041920,-2741.98,0.00019726,2]
[388679501,1759317041929,-500.0,0.00019726,2]
[388679502,1759317041938,-151.0,0.00019726,2]
[388679503,1759317041948,-894.69,0.00019726,2]
[388679504,1759317041958,-151.0,0.00019726,2]
[388679505,1759317041967,-151.0,0.00019726,2]
[388679506,1759317041977,-151.0,0.00019726,2]
[388679507,1759317041986,-500.0,0.00019726,2]
[388679508,1759317041996,-151.0,0.00019726,2]
[388679509,1759317042005,-265.512873,0.00019726,2]
[388679510,1759317042015,-2029.79,0.00019726,2]
[388679511,1759317042024,-500.0,0.00019726,2]
[388679512,1759317042035,-1890.66,0.00019726,2]
[388679513,1759317042045,-1696.84,0.00019726,2]
[388679514,1759317042054,-500.0,0.00019726,2]
[388679515,1759317042063,-500.0,0.00019726,2]
[388679516,1759317042073,-151.0,0.00019726,2]
[388679517,1759317042083,-151.0,0.00019726,2]
[388679518,1759317042092,-625.37,0.00019726,2]
[388679519,1759317042101,-1616.75,0.00019726,2]
[388679520,1759317042111,-1295.16,0.00019726,2]
[388679521,1759317042120,-930.81,0.00019726,2]
[388679522,1759317042129,-722.38,0.00019726,2]
[388679523,1759317042139,-708.03,0.00019726,2]
[388679524,1759317042148,-894.38,0.00019726,2]
[388679525,1759317042159,-2043.57,0.00019726,2]
[388679526,1759317042169,-2322.33,0.00019726,2]
[388679527,1759317042179,-500.0,0.00019726,2]
[388679528,1759317042189,-151.0,0.00019726,2]
[388679529,1759317042198,-1984.49,0.00019726,2]
[388679530,1759317042207,-500.0,0.00019726,2]
[388679531,1759317042217,-500.0,0.00019726,2]
[388679532,1759317042226,-500.0,0.00019726,2]
[388679533,1759317042236,-3566.33,0.00019726,2]
[388679534,1759317042245,-1612.42,0.00019726,2]
[388679535,1759317042255,-500.0,0.00019726,2]
[388679536,1759317042264,-1047.91,0.00019726,2]
[388679537,1759317042273,-825.25,0.00019726,2]
[388679538,1759317042283,-648.53,0.00019726,2]
[388679539,1759317042294,-151.0,0.00019726,2]
[388679540,1759317042304,-500.0,0.00019726,2]
[388679541,1759317042314,-1782.18,0.00019726,2]
[388679542,1759317042324,-500.0,0.00019726,2]
[388679543,1759317042333,-2218.49,0.00019726,2]
[388679544,1759317042343,-500.0,0.00019726,2]
[388679545,1759317042352,-500.0,0.00019726,2]
[388679546,1759317042361,-519.63,0.00019726,2]
[388679547,1759317042371,-2881.83,0.00019726,2]
[388679548,1759317042381,-3729.6,0.00019726,2]
[388679549,1759317042391,-166.68,0.00019726,2]
[388679550,1759317042400,-1365.21,0.00019726,2]
[388679551,1759317042410,-500.0,0.00019726,2]
[388679552,1759317042419,-886.48,0.00019726,2]
[388679553,1759317042429,-500.0,0.00019726,2]
[388679554,1759317042438,-500.0,0.00019726,2]
[388679555,1759317042448,-151.0,0.00019726,2]
[388679556,1759317042462,-152.083217,0.00019726,2]
[388679557,1759317042474,-500.0,0.00019726,2]
[388679558,1759317042484,-500.0,0.00019773,2]
[388679559,1759317042494,-500.0,0.00019773,2]
[388679560,1759317042507,-500.0,0.00019773,2]
[388679561,1759317042518,-500.0,0.00019773,2]
[388679562,1759317042528,-500.0,0.00019773,2]
[388679563,1759317042540,-500.0,0.00019773,2]
[388679564,1759317042550,-718.76789812,0.0001978,2]
[388679565,1759317042560,-2872.19652087,0.0001978,2]
[388679566,1759317042569,-800.0,0.00019793,2]
[388679567,1759317042579,-800.0,0.0001982,2]
[388679568,1759317042589,-800.0,0.00019821,2]
[388679569,1759317042598,-2803.0,0.00019863,2]
[388679570,1759317042608,-7321.9969306,0.00019878,2]
[388679571,1759317042618,-17005.5909779,0.00019878,2]
[388679572,1759317042627,-153.569921,0.00019878,2]
[388679573,1759317042637,-151.0,0.00019878,2]
[388679574,1759317042646,-151.0,0.00019878,2]
[388679575,1759317042656,-500.0,0.00019973,2]
[388679576,1759317042665,-500.0,0.00019973,2]
[388679577,1759317042675,-500.0,0.00019973,2]
[388679578,1759317042685,-500.0,0.00019973,2]
[388679579,1759317042694,-532.04413986,0.00019973,2]
[388679580,1759317042704,-500.0,0.00019973,2]
[388679581,1759317042714,-221.14958848,0.00019973,2]
[388679582,1759317042725,-500.0,0.00019973,2]
[388679583,1759317042735,-500.0,0.00019973,2]
[388679584,1759317042744,-500.0,0.00019973,2]
[388679585,1759317042754,-500.0,0.00019973,2]
[388679586,1759317042764,-500.0,0.00019973,2]
[388679587,1759317042774,-500.0,0.00019973,2]
[388679588,1759317042784,-172.03502859,0.00019973,2]
[388679589,1759317042794,-500.0,0.00019973,2]
[388679591,1759317042804,-500.0,0.00019973,2]
[388679593,1759317042814,-500.0,0.00019973,2]
[388679594,1759317042824,-500.0,0.00019973,2]
[388679596,1759317042833,-500.0,0.00019973,2]
[388679598,1759317042843,-500.0,0.00019973,2]
[388679599,1759317042852,-500.0,0.00019973,2]
[388679600,1759317042862,-500.0,0.00019973,2]
[388679601,1759317042871,-500.0,0.00019973,2]
[388679602,1759317042881,-500.0,0.00019973,2]
[388679604,1759317042891,-500.0,0.00019973,2]
[388679606,1759317042900,-500.0,0.00019973,2]
[388679608,1759317042910,-500.0,0.00019973,2]
[388679611,1759317042919,-500.0,0.00019973,2]
[388679613,1759317042928,-500.0,0.00019973,2]
[388679615,1759317042938,-500.0,0.00019973,2]
[388679617,1759317042947,-500.0,0.00019973,2]
[388679619,1759317042957,-168.066023,0.00019973,2]
[388679621,1759317042967,-151.0,0.00019973,2]
[388679624,1759317042978,-152.208263,0.00019973,2]
[388679625,1759317042987,-151.0,0.00019973,2]
[388679628,1759317042996,-151.0,0.00019973,2]
[388679630,1759317043007,-151.0,0.00019973,2]
[388679632,1759317043017,-151.0,0.00019973,2]
[388679634,1759317043026,-33265.3416993,0.00019975,2]
[388679637,1759317043037,-100000.0,0.0001999,2]
[388679640,1759317043046,-152.220407,0.0001999,2]
[388679643,1759317043056,-153.114269,0.0001999,2]
[388679645,1759317043065,-151.0,0.0001999,2]
[388679648,1759317043074,-157.853161,0.0001999,2]
[388679652,1759317043084,-151.0,0.0001999,2]
[388679655,1759317043094,-151.0,0.0001999,2]
[388679658,1759317043104,-151.0,0.0001999,2]
[388679660,1759317043114,-151.0,0.0001999,2]
[388679662,1759317043124,-298.083274,0.0001999,2]
[388679664,1759317043135,-234.662045,0.0001999,2]
[388679667,1759317043146,-234.662045,0.0001999,2]
[388679668,1759317043156,-234.662045,0.0001999,2]
[388679671,1759317043167,-234.662045,0.0001999,2]
[388679672,1759317043178,-174.167417,0.0001999,2]
[388679674,1759317043188,-151.0,0.0001999,2]
[388679676,1759317043198,-151.0,0.0001999,2]
[388679678,1759317043207,-151.0,0.0001999,2]
[388679680,1759317043216,-282.287597,0.0001999,2]
[388679682,1759317043226,-151.0,0.0001999,2]
[388679684,1759317043235,-151.0,0.0001999,2]
[388679686,1759317043245,-151.0,0.0001999,2]
[388679688,1759317043254,-151.0,0.0001999,2]
[388679690,1759317043264,-4107.608229,0.0001999,2]
[388679692,1759317043274,-151.0,0.0001999,2]
[388679694,1759317043283,-4107.608229,0.0001999,2]
[388679696,1759317043293,-151.0,0.0001999,2]
[388679698,1759317043303,-4107.608229,0.0001999,2]
[388679700,1759317043313,-4107.608229,0.0001999,2]
[388679702,1759317043322,-181.055094,0.0001999,2]
[388679704,1759317043331,-151.0,0.0001999,2]
[388679706,1759317043340,-151.0,0.0001999,2]
[388679708,1759317043349,-151.0,0.0001999,2]
[388679709,1759317043358,-151.0,0.0001999,2]
[388679711,1759317043368,-151.0,0.0001999,2]
[388679713,1759317043377,-167.25259092,0.0002,2]
[388679715,1759317043386,-259.13971485,0.0002,2]
[388679717,1759317043396,-1025.0,0.0002,2]
[388679719,1759317043406,-245.0,0.0002,2]
[388679721,1759317043416,-151.0,0.0002,2]
[388679723,1759317043425,-500.0,0.0002,2]
[388679725,1759317043435,-366.70175973,0.0002,2]
[388679727,1759317043445,-4038.6835485,0.0002,2]
[388679729,1759317043456,-68477.94938325,0.0002,2]
[388679731,1759317043468,-500.0,0.0002,2]
[388679733,1759317043478,-500.0,0.0002,2]
[388679735,1759317043487,-500.0,0.0002,2]
[388679737,1759317043498,-500.0,0.0002,2]
[388679739,1759317043507,-500.0,0.0002,2]
[388679741,1759317043516,-768.6,0.0002,2]
[388679743,1759317043525,-44075.0,0.0002,2]
[388679745,1759317043537,-500.0,0.0002,2]
[388679747,1759317043546,-500.0,0.0002,2]
[388679749,1759317043555,-1043.81,0.0002,2]
[388679751,1759317043564,-680.43,0.0002,2]
[388679753,1759317043574,-500.0,0.0002,2]
[388679755,1759317043583,-599.69,0.0002,2]
[388679757,1759317043593,-500.0,0.0002,2]
[388679759,1759317043602,-151.0,0.0002,2]
[388679761,1759317043613,-500.0,0.0002,2]
[388679764,1759317043622,-500.0,0.0002,2]
[388679767,1759317043632,-151.0,0.0002,2]
[388679770,1759317043641,-500.0,0.0002,2]
[388679773,1759317043650,-2013.15,0.0002,2]
[388679776,1759317043660,-500.0,0.0002,2]
[388679779,1759317043670,-1685.89,0.0002,2]
[388679782,1759317043679,-500.0,0.0002,2]
[388679785,1759317043689,-500.0,0.0002,2]
[388679787,1759317043698,-973.29,0.0002,2]
[388679789,1759317043708,-888.35,0.0002,2]
[388679791,1759317043717,-500.0,0.0002,2]
[388679793,1759317043727,-1151.0,0.0002,2]
[388679795,1759317043736,-500.0,0.0002,2]